[Event "DVM U10 2019"]
[Site "Magedburg"]
[Date "2019.12.29"]
[Round "6"]
[White "Lorenz, Veronika"]
[Black "Haubold, Sebastian Marcel"]
[Result "0-1"]
[ECO "C72"]
[WhiteElo "1273"]
[BlackElo "1613"]
[Annotator "NA"]
[PlyCount "36"]
[EventDate "2019.12.27"]
[EventType "team-tourn"]
[EventRounds "7"]
[EventCountry "GER"]
[SourceTitle "playchess.com"]
[Source "ChessBase"]
[SourceQuality "1"]
[TimeControl "3300+5"]

1. e4 {[%emt 0:00:00]} e5 {[%emt 0:00:04]} 2. Nf3 {[%emt 0:00:10]} Nc6 {[%emt 0:00:07]} 3. Bb5 {[%emt 0:00:06]} a6 {[%emt 0:00:13]} 4. Ba4 {[%emt 0:00:09]} d6 {[%emt 0:00:23]} 5. O-O {[%emt 0:01:05]} Bd7 {[%emt 0:00:35]} 6. c3 {[%emt 0:01:13]} Nf6 {[%emt 0:00:58]} 7. Re1 {[%emt 0:00:23]} b5 {[%emt 0:00:28]} 8. Bc2 {[%emt 0:01:52]} Be7 {[%emt 0:01:37]} 9. h3 {[%emt 0:01:25]} O-O {[%emt 0:01:08]} 10. d4 {[%emt 0:00:15]} exd4 {[%emt 0:00:59]} 11. cxd4 {[%emt 0:00:13]} Nb4 {[%emt 0:01:15]} 12. Bb3 {[%emt 0:03:49]} c5 {[%emt 0:01:56]} 13. a3 {[%emt 0:02:27]} Nc6 {[%emt 0:01:46]} 14. Bf4 {[%emt 0:02:12]} c4 {[%emt 0:00:53]} 15. Bc2 {[%emt 0:00:36]} a5 {[%emt 0:03:33]} 16. Qd2 {[%emt 0:02:49]} Qb6 {[%emt 0:06:37]} 17. Nc3 {[%emt 0:01:42]} b4 {[%emt 0:02:29]} 18. Nd5 {[%emt 0:00:32]} Qd8 {[%emt 0:08:30] normal} 0-1

[Event "DVM U10 2019"]
[Site "Magedburg"]
[Date "2019.12.29"]
[Round "6"]
[White "Gärtner, Alessandro"]
[Black "Conrad, Marius"]
[Result "0-1"]
[ECO "D40"]
[WhiteElo "1251"]
[BlackElo "1411"]
[Annotator "NA"]
[PlyCount "42"]
[EventDate "2019.12.27"]
[EventType "team-tourn"]
[EventRounds "7"]
[EventCountry "GER"]
[SourceTitle "playchess.com"]
[Source "ChessBase"]
[SourceQuality "1"]
[TimeControl "3300+5"]

1. d4 {[%emt 0:00:00]} d5 {[%emt 0:00:15]} 2. c4 {[%emt 0:00:06]} e6 {[%emt 0:00:26]} 3. Nc3 {[%emt 0:00:12]} Nf6 {[%emt 0:00:29]} 4. Nf3 {[%emt 0:00:10]} c5 {[%emt 0:00:24]} 5. e3 {[%emt 0:00:22]} Nc6 {[%emt 0:00:10]} 6. Be2 {[%emt 0:02:13]} Be7 {[%emt 0:00:12]} 7. O-O {[%emt 0:00:17]} O-O {[%emt 0:00:11]} 8. b3 {[%emt 0:00:44]} b6 {[%emt 0:00:27]} 9. Bb2 {[%emt 0:01:25]} Bb7 {[%emt 0:00:30]} 10. Re1 {[%emt 0:08:38]} Re8 {[%emt 0:02:02]} 11. a3 a6 {[%emt 0:01:11]} 12. Qc2 {[%emt 0:01:23]} dxc4 {[%emt 0:01:26]} 13. bxc4 {[%emt 0:00:51]} cxd4 {[%emt 0:00:11]} 14. Rad1 {[%emt 0:00:14]} Bc5 {[%emt 0:00:46]} 15. Na4 {[%emt 0:03:28]} e5 {[%emt 0:01:18]} 16. exd4 {[%emt 0:02:35]} exd4 {[%emt 0:00:43]} 17. Qb1 {[%emt 0:01:58]} Qd6 {[%emt 0:07:43]} 18. Qa1 {[%emt 0:01:07]} Rad8 {[%emt 0:01:30]} 19. Nxc5 {[%emt 0:01:29]} bxc5 {[%emt 0:00:13]} 20. Qb1 {[%emt 0:05:58]} Ne5 {[%emt 0:04:39]} 21. Nxe5 {[%emt 0:03:08]} Qxe5 {[%emt 0:00:27] normal} 0-1

[Event "DVM U10 2019"]
[Site "Magedburg"]
[Date "2019.12.29"]
[Round "6"]
[White "Meusel, Theodor"]
[Black "Goldschmidt, Jakob"]
[Result "1-0"]
[ECO "C54"]
[WhiteElo "1223"]
[BlackElo "1132"]
[Annotator "NA RC"]
[PlyCount "45"]
[EventDate "2019.12.27"]
[EventType "team-tourn"]
[EventRounds "7"]
[EventCountry "GER"]
[SourceTitle "playchess.com"]
[Source "ChessBase"]
[SourceQuality "1"]
[TimeControl "3300+5"]

1. e4 {[%emt 0:00:00]} e5 {[%emt 0:00:00]} 2. Nf3 {[%emt 0:00:00]} Nc6 {[%emt 0:00:05]} 3. Bc4 {[%emt 0:00:00]} Bc5 4. c3 {[%emt 0:00:00]} Nf6 {[%emt 0:00:25]} 5. d4 {[%emt 0:00:01]} exd4 {[%emt 0:00:28]} 6. cxd4 {[%emt 0:00:02]} Bb6 {[%emt 0:00:23]} 7. Nc3 {[%emt 0:00:04]} O-O {[%emt 0:00:10]} 8. O-O {[%emt 0:00:02]} d6 {[%emt 0:00:29]} 9. Bg5 {[%emt 0:00:03]} h6 {[%emt 0:00:57]} 10. Bh4 {[%emt 0:00:03]} Be6 {[%emt 0:01:27]} 11. d5 {[%emt 0:00:02]} Bxd5 {[%emt 0:01:04]} 12. Bxd5 {[%emt 0:00:08]} Qe7 {[%emt 0:02:14]} 13. Re1 {[%emt 0:00:54]} Rfe8 {[%emt 0:01:11]} 14. Qa4 Qd7 {[%emt 0:01:49]} 15. Bxf6 {[%emt 0:02:39]} gxf6 {[%emt 0:00:18]} 16. Nd2 {[%emt 0:01:40]} Kh8 {[%emt 0:01:10]} 17. e5 {[%emt 0:01:41]} fxe5 {[%emt 0:00:37]} 18. Qh4 {[%emt 0:00:36]} Kh7 {[%emt 0:01:09]} 19. Nde4 {[%emt 0:00:22]} Rg8 {[%emt 0:01:03]} 20. Nf6+ Kg7 {[%emt 0:00:51]} 21. Nxd7 {[%emt 0:00:24]} Kh7 {[%emt 0:01:12]} 22. Be4+ {[%emt 0:00:20]} Kg7 {[%emt 0:00:34]} 23. Qf6# {[%emt 0:00:11] normal} 1-0

[Event "DVM U10 2019"]
[Site "Magedburg"]
[Date "2019.12.29"]
[Round "6"]
[White "Nönnig, Jakob"]
[Black "Bangiev, Katharina"]
[Result "0-1"]
[ECO "B08"]
[WhiteElo "1153"]
[BlackElo "1239"]
[Annotator "NA"]
[PlyCount "72"]
[EventDate "2019.12.27"]
[EventType "team-tourn"]
[EventRounds "7"]
[EventCountry "GER"]
[SourceTitle "playchess.com"]
[Source "ChessBase"]
[SourceQuality "1"]
[TimeControl "3300+5"]

1. e4 {[%emt 0:00:00]} d6 {[%emt 0:00:00]} 2. Nf3 {[%emt 0:00:04]} g6 {[%emt 0:00:05]} 3. d4 {[%emt 0:00:11]} Bg7 {[%emt 0:00:07]} 4. Nc3 {[%emt 0:00:21]} Nf6 {[%emt 0:00:15]} 5. Bc4 {[%emt 0:00:27]} O-O {[%emt 0:00:09]} 6. Bf4 {[%emt 0:00:15]} Nc6 {[%emt 0:00:18]} 7. O-O {[%emt 0:00:18]} Bg4 {[%emt 0:00:05]} 8. d5 {[%emt 0:00:30]} Bxf3 {[%emt 0:01:19]} 9. Qxf3 {[%emt 0:00:29]} Nd4 {[%emt 0:00:25]} 10. Qd3 {[%emt 0:00:59]} e5 {[%emt 0:00:32]} 11. dxe6 {[%emt 0:00:31]} Nxe6 {[%emt 0:00:20]} 12. Bg3 {[%emt 0:01:18]} Nc5 {[%emt 0:00:39]} 13. Qe3 {[%emt 0:01:15]} Re8 {[%emt 0:00:27]} 14. Bh4 {[%emt 0:01:33]} Qd7 {[%emt 0:01:22]} 15. Bxf6 {[%emt 0:01:14]} Bxf6 {[%emt 0:00:10]} 16. f3 {[%emt 0:00:48]} Ne6 {[%emt 0:04:02]} 17. Bxe6 {[%emt 0:01:01]} fxe6 {[%emt 0:00:37]} 18. Rad1 {[%emt 0:01:33]} c6 {[%emt 0:01:33]} 19. e5 {[%emt 0:00:19]} Bd8 {[%emt 0:02:11]} 20. Rxd6 {[%emt 0:00:22]} Qxd6 {[%emt 0:00:45]} 21. exd6 {[%emt 0:02:15]} Bb6 {[%emt 0:00:08]} 22. Qxb6 {[%emt 0:01:12]} axb6 {[%emt 0:00:06]} 23. Rd1 {[%emt 0:00:26]} Red8 {[%emt 0:00:34]} 24. d7 {[%emt 0:00:18]} Kf7 25. Ne4 {[%emt 0:00:55]} Ke7 {[%emt 0:00:45]} 26. a3 {[%emt 0:02:18]} h6 {[%emt 0:00:55]} 27. Re1 {[%emt 0:04:04]} Rxd7 {[%emt 0:00:47]} 28. Ng3 {[%emt 0:00:36]} Rad8 {[%emt 0:01:06]} 29. Ne4 {[%emt 0:02:46]} Rd1 {[%emt 0:00:51]} 30. Kf2 {[%emt 0:00:50]} Rxe1 {[%emt 0:06:00]} 31. Kxe1 {[%emt 0:00:02]} Rd5 {[%emt 0:00:17]} 32. c4 {[%emt 0:01:02]} Rd4 {[%emt 0:00:23]} 33. b3 {[%emt 0:00:22]} Rd3 {[%emt 0:00:15]} 34. Nd2 {[%emt 0:00:26]} Kd6 {[%emt 0:01:46]} 35. Ke2 {[%emt 0:00:20]} Rd4 {[%emt 0:00:27]} 36. Ne4+ {[%emt 0:00:24]} Ke5 {[%emt 0:00:33] normal} 0-1

[Event "DVM U10 2019"]
[Site "Magedburg"]
[Date "2019.12.29"]
[Round "6"]
[White "Ebers, Frederik"]
[Black "Meise, Vincent"]
[Result "1/2-1/2"]
[ECO "D02"]
[WhiteElo "1125"]
[BlackElo "895"]
[Annotator "NA"]
[PlyCount "48"]
[EventDate "2019.12.27"]
[EventType "team-tourn"]
[EventRounds "7"]
[EventCountry "GER"]
[SourceTitle "playchess.com"]
[Source "ChessBase"]
[SourceQuality "1"]
[TimeControl "3300+5"]

1. d4 {[%emt 0:00:00]} d5 {[%emt 0:00:02]} 2. Nf3 {[%emt 0:00:02]} Nf6 {[%emt 0:00:36]} 3. Bf4 {[%emt 0:00:11]} Bf5 {[%emt 0:00:59]} 4. e3 {[%emt 0:00:11]} a6 {[%emt 0:00:21]} 5. Bd3 {[%emt 0:00:17]} Bg6 {[%emt 0:00:25]} 6. O-O {[%emt 0:00:34]} e6 {[%emt 0:01:00]} 7. c3 {[%emt 0:00:11]} Bd6 {[%emt 0:00:57]} 8. Bg5 {[%emt 0:02:17]} Be7 {[%emt 0:00:45]} 9. Qc2 {[%emt 0:00:18]} Nc6 {[%emt 0:01:55]} 10. Nbd2 {[%emt 0:00:50]} h6 {[%emt 0:00:34]} 11. Bxf6 {[%emt 0:00:59]} Bxf6 {[%emt 0:00:03]} 12. Bxg6 {[%emt 0:00:33]} fxg6 {[%emt 0:00:08]} 13. Qxg6+ {[%emt 0:00:04]} Kd7 {[%emt 0:00:13]} 14. Qc2 {[%emt 0:02:48]} Qe7 {[%emt 0:00:52]} 15. e4 {[%emt 0:01:16]} dxe4 {[%emt 0:01:19]} 16. Nxe4 {[%emt 0:00:02]} Rad8 {[%emt 0:01:11]} 17. Nxf6+ {[%emt 0:00:44]} Qxf6 {[%emt 0:00:11]} 18. Rad1 {[%emt 0:00:24]} Kc8 {[%emt 0:00:55]} 19. Rfe1 {[%emt 0:00:49]} Rhe8 {[%emt 0:01:04]} 20. d5 {[%emt 0:02:33]} exd5 {[%emt 0:02:53]} 21. Rxe8 {[%emt 0:00:16]} Rxe8 {[%emt 0:00:06]} 22. Rxd5 {[%emt 0:00:28]} Qh4 {[%emt 0:01:22]} 23. Rd1 {[%emt 0:00:40]} Qe7 {[%emt 0:00:33]} 24. h3 {[%emt 0:01:22]} Ne5 {[%emt 0:00:33] normal} 1/2-1/2

[Event "DVM U10 2019"]
[Site "Magedburg"]
[Date "2019.12.29"]
[Round "6"]
[White "Schmidt, Anton"]
[Black "Heutling, Sarah"]
[Result "1-0"]
[ECO "A48"]
[WhiteElo "1090"]
[BlackElo "1129"]
[Annotator "NA"]
[PlyCount "32"]
[EventDate "2019.12.27"]
[EventType "team-tourn"]
[EventRounds "7"]
[EventCountry "GER"]
[SourceTitle "playchess.com"]
[Source "ChessBase"]
[SourceQuality "1"]
[TimeControl "3300+5"]

1. d4 {[%emt 0:00:00]} Nf6 {[%emt 0:00:01]} 2. Bf4 g6 3. Nf3 Bg7 4. e3 {[%emt 0:00:50]} O-O {[%emt 0:00:18]} 5. Be2 {[%emt 0:00:15]} d6 {[%emt 0:00:07]} 6. O-O c5 7. c3 {[%emt 0:01:33]} Nbd7 {[%emt 0:02:39]} 8. Nbd2 {[%emt 0:00:37]} Re8 {[%emt 0:02:48]} 9. Nc4 {[%emt 0:04:06]} b6 {[%emt 0:08:38]} 10. Bg3 {[%emt 0:03:12]} Bb7 {[%emt 0:00:38]} 11. Re1 {[%emt 0:02:32]} b5 {[%emt 0:06:51]} 12. Ncd2 {[%emt 0:04:06]} a6 {[%emt 0:00:25]} 13. a4 {[%emt 0:04:13]} bxa4 {[%emt 0:00:48]} 14. Rxa4 {[%emt 0:00:32]} Nb6 {[%emt 0:00:53]} 15. Ra3 {[%emt 0:01:19]} Qd7 {[%emt 0:07:09]} 16. Nb3 {[%emt 0:01:40]} c4 {[%emt 0:05:00] normal} 1-0

[Event "DVM U10 2019"]
[Site "Magedburg"]
[Date "2019.12.29"]
[Round "7"]
[White "Haubold, Sebastian Marcel"]
[Black "Sauer, Tim"]
[Result "1-0"]
[ECO "B14"]
[WhiteElo "1613"]
[BlackElo "1691"]
[Annotator "NA"]
[PlyCount "135"]
[EventDate "2019.12.27"]
[EventType "team-tourn"]
[EventRounds "7"]
[EventCountry "GER"]
[SourceTitle "playchess.com"]
[Source "ChessBase"]
[SourceQuality "1"]
[TimeControl "3300+5"]

1. e4 {[%emt 0:00:00]} c6 {[%emt 0:00:00]} 2. d4 {[%emt 0:00:06]} d5 {[%emt 0:00:03]} 3. exd5 {[%emt 0:00:06]} cxd5 {[%emt 0:00:03]} 4. c4 {[%emt 0:00:08]} Nf6 {[%emt 0:00:09]} 5. Nc3 {[%emt 0:00:15]} g6 {[%emt 0:00:02]} 6. Bg5 {[%emt 0:01:21]} Bg7 {[%emt 0:00:47]} 7. h3 {[%emt 0:02:23]} Nc6 {[%emt 0:01:45]} 8. Nf3 {[%emt 0:01:39]} Ne4 {[%emt 0:01:42]} 9. Be3 {[%emt 0:00:55]} Nf6 {[%emt 0:05:27]} 10. c5 {[%emt 0:02:37]} O-O {[%emt 0:00:45]} 11. Bb5 {[%emt 0:01:40]} Qc7 {[%emt 0:03:04]} 12. a3 {[%emt 0:02:09]} a6 {[%emt 0:04:44]} 13. Ba4 {[%emt 0:02:59]} b5 {[%emt 0:00:24]} 14. Bc2 {[%emt 0:02:26]} Bb7 {[%emt 0:00:44]} 15. O-O {[%emt 0:01:40]} Rad8 {[%emt 0:00:18]} 16. Qd2 {[%emt 0:01:54]} Rfe8 {[%emt 0:00:26]} 17. Bf4 {[%emt 0:00:23]} Qc8 {[%emt 0:00:49]} 18. Rfe1 {[%emt 0:01:44]} Qd7 {[%emt 0:11:13]} 19. Rad1 {[%emt 0:03:23]} Kh8 {[%emt 0:05:41]} 20. Re2 {[%emt 0:03:41]} Nh5 {[%emt 0:02:36]} 21. Bh2 {[%emt 0:01:43]} Nf6 {[%emt 0:00:28]} 22. b4 {[%emt 0:01:18]} Ng8 {[%emt 0:01:11]} 23. Bb3 {[%emt 0:01:10]} e6 {[%emt 0:00:40]} 24. Rde1 {[%emt 0:00:23]} Nh6 {[%emt 0:00:37]} 25. Bc2 {[%emt 0:01:05]} Ng8 {[%emt 0:01:48]} 26. Bd6 {[%emt 0:01:57]} Bf8 {[%emt 0:01:22]} 27. Bf4 {[%emt 0:00:22]} Bg7 {[%emt 0:00:07]} 28. Nd1 {[%emt 0:00:23]} Nf6 {[%emt 0:00:48]} 29. Nb2 {[%emt 0:00:13]} Nh5 {[%emt 0:00:29]} 30. Bh2 {[%emt 0:00:06]} Nf6 {[%emt 0:00:09]} 31. a4 {[%emt 0:00:05]} Ra8 {[%emt 0:02:07]} 32. Qc3 {[%emt 0:01:58]} Rec8 {[%emt 0:00:30]} 33. Bd3 {[%emt 0:00:14]} Na7 {[%emt 0:00:16]} 34. Ne5 {[%emt 0:00:16]} Qe8 {[%emt 0:00:04]} 35. Bc2 {[%emt 0:02:53]} Kg8 {[%emt 0:00:27]} 36. f3 {[%emt 0:00:31]} Bh8 {[%emt 0:00:59]} 37. g4 {[%emt 0:02:39]} Kf8 {[%emt 0:00:06]} 38. Qd2 {[%emt 0:01:29]} Bg7 {[%emt 0:00:24]} 39. Bf4 {[%emt 0:00:15]} Kg8 {[%emt 0:01:01]} 40. Bh6 {[%emt 0:01:06]} Bh8 {[%emt 0:00:08]} 41. a5 {[%emt 0:01:04]} Nc6 {[%emt 0:00:20]} 42. Nxc6 {[%emt 0:00:15]} Bxc6 {[%emt 0:00:27]} 43. Nd3 {[%emt 0:00:12]} Qe7 {[%emt 0:00:28]} 44. Qe3 {[%emt 0:00:32]} Re8 {[%emt 0:00:42]} 45. Ne5 {[%emt 0:00:25]} Rac8 {[%emt 0:00:16]} 46. Kg2 {[%emt 0:00:51]} Rc7 {[%emt 0:00:30]} 47. Kg3 {[%emt 0:00:13]} Rcc8 {[%emt 0:00:08]} 48. h4 {[%emt 0:00:06]} Bb7 {[%emt 0:00:23]} 49. h5 {[%emt 0:00:12]} Bc6 {[%emt 0:00:06]} 50. hxg6 {[%emt 0:00:03]} hxg6 {[%emt 0:00:05]} 51. Rh1 {[%emt 0:00:03]} Nd7 {[%emt 0:00:45]} 52. Nxc6 {[%emt 0:00:15]} Rxc6 {[%emt 0:00:03]} 53. Reh2 {[%emt 0:00:07]} Qf6 {[%emt 0:00:02]} 54. g5 {[%emt 0:00:09]} Qd8 {[%emt 0:00:07]} 55. Bf8 {[%emt 0:00:10]} Kxf8 {[%emt 0:00:05]} 56. Rxh8+ {[%emt 0:00:03]} Ke7 {[%emt 0:00:00]} 57. R8h7 Rf8 {[%emt 0:00:04]} 58. Bxg6 {[%emt 0:00:06]} Qc7+ {[%emt 0:00:01]} 59. f4 {[%emt 0:00:06]} Ke8 {[%emt 0:00:06]} 60. Bd3 Kd8 {[%emt 0:00:29]} 61. Qf3 {[%emt 0:00:28]} Kc8 62. Qh5 f6 {[%emt 0:00:16]} 63. g6 {[%emt 0:00:06]} e5 {[%emt 0:00:01]} 64. g7 {[%emt 0:00:12]} exf4+ {[%emt 0:00:01]} 65. Kf3 {[%emt 0:00:01]} Re6 {[%emt 0:00:22]} 66. gxf8=Q+ {[%emt 0:00:07]} Nxf8 {[%emt 0:00:01]} 67. Rxc7+ {[%emt 0:00:01]} Kxc7 {[%emt 0:00:02]} 68. Qf7+ {[%emt 0:00:02] normal} 1-0

[Event "DVM U10 2019"]
[Site "Magedburg"]
[Date "2019.12.29"]
[Round "7"]
[White "Torosyan, Bagrat"]
[Black "Bartels, Jona Henrik"]
[Result "1-0"]
[ECO "C42"]
[WhiteElo "1613"]
[BlackElo "1211"]
[Annotator "NA"]
[PlyCount "87"]
[EventDate "2019.12.27"]
[EventType "team-tourn"]
[EventRounds "7"]
[EventCountry "GER"]
[SourceTitle "playchess.com"]
[Source "ChessBase"]
[SourceQuality "1"]
[TimeControl "3300+5"]

1. e4 {[%emt 0:00:00]} e5 {[%emt 0:00:00]} 2. Nf3 {[%emt 0:00:00]} Nf6 {[%emt 0:00:05]} 3. Nxe5 {[%emt 0:00:03]} d6 {[%emt 0:00:07]} 4. Nf3 {[%emt 0:00:05]} Nxe4 {[%emt 0:00:05]} 5. c4 {[%emt 0:00:09]} Be7 {[%emt 0:00:35]} 6. Nc3 {[%emt 0:00:19]} Nxc3 {[%emt 0:00:53]} 7. bxc3 {[%emt 0:00:07]} O-O {[%emt 0:00:29]} 8. Be2 {[%emt 0:00:05]} Bf5 {[%emt 0:00:18]} 9. d4 {[%emt 0:00:13]} c6 {[%emt 0:01:03]} 10. O-O {[%emt 0:00:15]} Re8 {[%emt 0:00:34]} 11. Bd3 {[%emt 0:00:11]} Qd7 {[%emt 0:01:07]} 12. Qc2 {[%emt 0:00:23]} Bxd3 {[%emt 0:00:15]} 13. Qxd3 {[%emt 0:00:07]} Na6 {[%emt 0:01:49]} 14. Rb1 {[%emt 0:00:32]} b6 15. c5 {[%emt 0:02:02]} Nc7 {[%emt 0:01:37]} 16. cxb6 {[%emt 0:01:08]} axb6 {[%emt 0:00:17]} 17. Rxb6 {[%emt 0:00:58]} Rxa2 {[%emt 0:01:11]} 18. Qc4 {[%emt 0:00:33]} Raa8 {[%emt 0:01:14]} 19. Qxc6 {[%emt 0:00:32]} Qxc6 {[%emt 0:01:01]} 20. Rxc6 {[%emt 0:00:14]} Nd5 {[%emt 0:00:17]} 21. Bd2 {[%emt 0:00:14]} Rac8 {[%emt 0:01:19]} 22. Rxc8 {[%emt 0:00:13]} Rxc8 {[%emt 0:00:11]} 23. Rc1 {[%emt 0:00:07]} Bd8 {[%emt 0:00:27]} 24. c4 {[%emt 0:00:18]} Nb6 {[%emt 0:00:29]} 25. c5 {[%emt 0:00:13]} dxc5 {[%emt 0:00:11]} 26. dxc5 {[%emt 0:00:07]} Na4 {[%emt 0:01:07]} 27. c6 {[%emt 0:00:18]} Be7 {[%emt 0:02:36]} 28. c7 {[%emt 0:01:16]} Nb6 {[%emt 0:00:36]} 29. Ba5 {[%emt 0:01:45]} Nd5 {[%emt 0:00:21]} 30. Rd1 {[%emt 0:00:35]} Nxc7 {[%emt 0:00:19]} 31. Rd7 {[%emt 0:00:16]} Ne6 {[%emt 0:02:26]} 32. Rxe7 {[%emt 0:00:21]} h6 {[%emt 0:00:27]} 33. g3 {[%emt 0:00:18]} Rc5 {[%emt 0:00:36]} 34. Bb6 {[%emt 0:00:27]} Rc6 {[%emt 0:00:09]} 35. Be3 {[%emt 0:00:07]} Rc8 {[%emt 0:00:35]} 36. Ne5 {[%emt 0:00:25]} Rf8 {[%emt 0:00:18]} 37. f4 {[%emt 0:00:55]} f6 {[%emt 0:00:42]} 38. Rxe6 {[%emt 0:00:14]} fxe5 {[%emt 0:00:25]} 39. Rxe5 {[%emt 0:00:05]} Kh7 {[%emt 0:00:19]} 40. Bc5 {[%emt 0:00:11]} Rc8 {[%emt 0:00:22]} 41. Kf2 {[%emt 0:00:08]} Rd8 {[%emt 0:00:15]} 42. Ke2 {[%emt 0:00:09]} Ra8 {[%emt 0:00:20]} 43. Rd5 {[%emt 0:00:11]} Re8+ {[%emt 0:00:10]} 44. Be3 {[%emt 0:00:06] normal} 1-0

[Event "DVM U10 2019"]
[Site "Magedburg"]
[Date "2019.12.29"]
[Round "7"]
[White "Goldmann, David"]
[Black "Schlange, Jonathan"]
[Result "1-0"]
[ECO "C01"]
[WhiteElo "1594"]
[BlackElo "1319"]
[Annotator "NA"]
[PlyCount "141"]
[EventDate "2019.12.27"]
[EventType "team-tourn"]
[EventRounds "7"]
[EventCountry "GER"]
[SourceTitle "playchess.com"]
[Source "ChessBase"]
[SourceQuality "1"]
[TimeControl "3300+5"]

1. e4 {[%emt 0:00:00]} e6 {[%emt 0:00:07]} 2. d4 {[%emt 0:00:02]} d5 {[%emt 0:00:02]} 3. exd5 exd5 {[%emt 0:00:06]} 4. c4 {[%emt 0:00:14]} Nf6 {[%emt 0:00:05]} 5. Nc3 {[%emt 0:00:05]} c5 {[%emt 0:00:11]} 6. Bg5 {[%emt 0:00:04]} Be7 {[%emt 0:00:23]} 7. dxc5 {[%emt 0:00:10]} dxc4 {[%emt 0:00:06]} 8. Qxd8+ {[%emt 0:00:10]} Kxd8 {[%emt 0:00:08]} 9. Bxc4 {[%emt 0:00:17]} Be6 {[%emt 0:00:17]} 10. Bxe6 fxe6 {[%emt 0:00:06]} 11. O-O-O+ {[%emt 0:00:15]} Ke8 {[%emt 0:00:07]} 12. Bxf6 {[%emt 0:00:44]} Bxf6 {[%emt 0:00:27]} 13. Nb5 {[%emt 0:00:13]} Na6 {[%emt 0:00:39]} 14. Nd6+ {[%emt 0:00:27]} Ke7 {[%emt 0:00:41]} 15. Ne4 {[%emt 0:00:45]} Nxc5 {[%emt 0:01:07]} 16. Nxc5 {[%emt 0:00:16]} Rac8 {[%emt 0:00:06]} 17. Rd7+ {[%emt 0:00:38]} Ke8 {[%emt 0:00:05]} 18. Rxb7 {[%emt 0:00:13]} Rxc5+ {[%emt 0:00:11]} 19. Kb1 {[%emt 0:00:11]} g6 {[%emt 0:00:29]} 20. Nf3 {[%emt 0:00:29]} a5 {[%emt 0:00:25]} 21. Re1 {[%emt 0:00:06]} e5 {[%emt 0:01:16]} 22. Rb3 {[%emt 0:00:29]} Kd7 {[%emt 0:00:30]} 23. Nd2 {[%emt 0:00:34]} Bg7 {[%emt 0:01:03]} 24. f4 {[%emt 0:01:28]} Bh6 {[%emt 0:00:29]} 25. Ne4 {[%emt 0:00:10]} Rc4 {[%emt 0:01:26]} 26. Nf6+ {[%emt 0:00:52]} Ke6 {[%emt 0:00:26]} 27. fxe5 {[%emt 0:00:04]} Rhc8 {[%emt 0:00:10]} 28. Rb6+ {[%emt 0:00:50]} Kf7 {[%emt 0:00:45]} 29. a3 {[%emt 0:00:52]} Rc1+ {[%emt 0:02:14]} 30. Rxc1 {[%emt 0:00:01]} Rxc1+ {[%emt 0:00:06]} 31. Ka2 {[%emt 0:00:06]} Rc2 {[%emt 0:00:05]} 32. Rb7+ {[%emt 0:00:43]} Ke6 {[%emt 0:00:05]} 33. Ng4 {[%emt 0:00:37]} Bf4 {[%emt 0:00:29]} 34. Rxh7 {[%emt 0:00:49]} Rxg2 {[%emt 0:00:11]} 35. h3 {[%emt 0:00:20]} Bc1 {[%emt 0:01:05]} 36. Rb7 {[%emt 0:00:32]} Bf4 {[%emt 0:00:47]} 37. Rb6+ {[%emt 0:00:35]} Kf5 {[%emt 0:01:02]} 38. Rf6+ {[%emt 0:00:10]} Kg5 {[%emt 0:00:06]} 39. e6 {[%emt 0:00:38]} Bc1 {[%emt 0:00:06]} 40. h4+ {[%emt 0:01:20]} Kxh4 {[%emt 0:00:48]} 41. Nf2 {[%emt 0:00:20]} Bg5 {[%emt 0:00:37]} 42. e7 {[%emt 0:00:29]} Bxf6 {[%emt 0:00:09]} 43. e8=Q Rxf2 {[%emt 0:00:10]} 44. Qe1 {[%emt 0:00:58]} Bd4 {[%emt 0:00:03]} 45. Qe4+ {[%emt 0:00:10]} Kh5 {[%emt 0:00:12]} 46. Qxd4 Rf5 {[%emt 0:00:28]} 47. b4 {[%emt 0:00:14]} axb4 {[%emt 0:00:04]} 48. axb4 {[%emt 0:00:08]} g5 {[%emt 0:00:15]} 49. Qd7 {[%emt 0:01:00]} Rf4 {[%emt 0:00:28]} 50. Qh3+ {[%emt 0:00:12]} Rh4 {[%emt 0:00:38]} 51. Qf3+ {[%emt 0:00:05]} Kg6 {[%emt 0:00:11]} 52. b5 {[%emt 0:00:07]} g4 {[%emt 0:00:31]} 53. Qf4 {[%emt 0:00:04]} Kh5 {[%emt 0:00:20]} 54. Qf5+ {[%emt 0:00:05]} Kh6 {[%emt 0:00:03]} 55. b6 {[%emt 0:00:13]} Rh5 {[%emt 0:00:24]} 56. Qxg4 {[%emt 0:00:22]} Ra5+ {[%emt 0:00:05]} 57. Kb3 {[%emt 0:00:12]} Rb5+ {[%emt 0:00:05]} 58. Qb4 {[%emt 0:00:02]} Rxb6 {[%emt 0:00:20]} 59. Qxb6+ {[%emt 0:00:16]} Kg5 {[%emt 0:00:13]} 60. Qf2 {[%emt 0:00:09]} Kg4 {[%emt 0:00:05]} 61. Kc4 {[%emt 0:01:08]} Kg5 {[%emt 0:00:17]} 62. Qf3 {[%emt 0:00:07]} Kg6 {[%emt 0:00:12]} 63. Qf4 {[%emt 0:00:07]} Kg7 {[%emt 0:00:05]} 64. Qf5 {[%emt 0:00:08]} Kg8 {[%emt 0:00:06]} 65. Qf6 {[%emt 0:00:13]} Kh7 {[%emt 0:00:05]} 66. Qg5 {[%emt 0:00:06]} Kh8 {[%emt 0:00:05]} 67. Qg4 {[%emt 0:00:03]} Kh7 {[%emt 0:00:06]} 68. Kd5 {[%emt 0:00:09]} Kh6 {[%emt 0:00:06]} 69. Ke6 {[%emt 0:00:09]} Kh7 {[%emt 0:00:09]} 70. Kf7 {[%emt 0:00:02]} Kh6 {[%emt 0:00:04]} 71. Qh4# {[%emt 0:00:13] normal} 1-0

[Event "DVM U10 2019"]
[Site "Magedburg"]
[Date "2019.12.29"]
[Round "7"]
[White "Ruddat, Jarne"]
[Black "Schott, Moritz"]
[Result "1-0"]
[ECO "C44"]
[WhiteElo "1458"]
[BlackElo "1090"]
[Annotator "NA"]
[PlyCount "49"]
[EventDate "2019.12.27"]
[EventType "team-tourn"]
[EventRounds "7"]
[EventCountry "GER"]
[SourceTitle "playchess.com"]
[Source "ChessBase"]
[SourceQuality "1"]
[TimeControl "3300+5"]

1. e4 {[%emt 0:00:00]} e5 {[%emt 0:00:02]} 2. Nf3 {[%emt 0:00:00]} Nc6 {[%emt 0:00:11]} 3. d4 {[%emt 0:00:03]} exd4 {[%emt 0:00:13]} 4. Nxd4 {[%emt 0:00:04]} Nf6 {[%emt 0:00:19]} 5. Nc3 {[%emt 0:00:04]} Bb4 {[%emt 0:00:14]} 6. Nxc6 {[%emt 0:00:04]} bxc6 {[%emt 0:00:09]} 7. Bd3 {[%emt 0:00:05]} d5 {[%emt 0:00:14]} 8. exd5 {[%emt 0:00:04]} cxd5 {[%emt 0:00:12]} 9. O-O {[%emt 0:00:05]} O-O {[%emt 0:00:16]} 10. Bg5 {[%emt 0:00:04]} h6 {[%emt 0:00:22]} 11. Bxf6 {[%emt 0:00:05]} Qxf6 {[%emt 0:00:11]} 12. Nxd5 {[%emt 0:00:05]} Qxb2 {[%emt 0:00:17]} 13. Rb1 {[%emt 0:00:07]} Qd4 {[%emt 0:00:32]} 14. Bh7+ {[%emt 0:00:06]} Kxh7 {[%emt 0:00:11]} 15. Qxd4 {[%emt 0:00:05]} c5 {[%emt 0:00:39]} 16. Qe4+ {[%emt 0:00:29]} Kh8 {[%emt 0:00:22]} 17. Nxb4 {[%emt 0:00:05]} cxb4 {[%emt 0:00:18]} 18. Qxa8 {[%emt 0:00:11]} Kg8 {[%emt 0:00:36]} 19. Qxa7 {[%emt 0:00:09]} Be6 {[%emt 0:00:23]} 20. Rxb4 {[%emt 0:00:12]} Bc8 {[%emt 0:01:14]} 21. Rb8 {[%emt 0:00:16]} Be6 {[%emt 0:00:24]} 22. Rxf8+ {[%emt 0:00:10]} Kxf8 {[%emt 0:00:05]} 23. Qb8+ {[%emt 0:00:13]} Ke7 {[%emt 0:00:18]} 24. Qc7+ {[%emt 0:00:20]} Kf8 {[%emt 0:00:18]} 25. Qd8# {[%emt 0:00:06] normal} 1-0